fUST/lending_fUST_20250715
["ID","MTS","AMOUNT","RATE_DAILY","PERIOD"]
[372280430,1752573049840,-521.09,0.00019726,2]
[372280431,1752573049850,-460.0,0.00019726,2]
[372280432,1752573049859,-460.0,0.00019726,2]
[372280433,1752573049869,-460.0,0.00019726,2]
[372280434,1752573049878,-460.0,0.00019726,2]
[372280435,1752573049888,-460.0,0.00019726,2]
[372280436,1752573049897,-460.0,0.00019726,2]
[372280437,1752573049907,-460.0,0.00019726,2]
[372280438,1752573049917,-460.0,0.00019726,2]
[372280439,1752573049926,-460.0,0.00019726,2]
[372280440,1752573049936,-460.0,0.00019726,2]
[372280441,1752573049945,-460.0,0.00019726,2]
[372280442,1752573049955,-527.36239569,0.00019726,2]
[372280443,1752573049965,-460.0,0.00019726,2]
[372280444,1752573049974,-460.0,0.00019726,2]
[372280445,1752573049984,-460.0,0.00019726,2]
[372280446,1752573049994,-460.0,0.00019726,2]
[372280447,1752573050003,-460.0,0.00019726,2]
[372280448,1752573050013,-857.74,0.00019726,2]
[372280449,1752573050023,-460.0,0.00019726,2]
[372280450,1752573050032,-529.98,0.00019726,2]
[372280451,1752573050043,-460.0,0.00019726,2]
[372280452,1752573050052,-460.0,0.00019726,2]
[372280453,1752573050062,-1898.17,0.00019726,2]
[372280454,1752573050071,-521.25,0.00019726,2]
[372280455,1752573050081,-460.0,0.00019726,2]
[372280456,1752573050091,-460.0,0.00019726,2]
[372280457,1752573050101,-460.0,0.00019726,2]
[372280458,1752573050110,-460.0,0.00019726,2]
[372280459,1752573050120,-460.0,0.00019726,2]
[372280460,1752573050130,-277.66712429,0.00019726,2]
[372280461,1752573050140,-778.98,0.00019726,2]
[372280462,1752573050149,-460.0,0.00019726,2]
[372280463,1752573050159,-460.0,0.00019726,2]
[372280464,1752573050169,-460.0,0.00019726,2]
[372280465,1752573050178,-460.0,0.00019726,2]
[372280466,1752573050189,-460.0,0.00019726,2]
[372280467,1752573050199,-564.23,0.00019726,2]
[372280468,1752573050208,-460.0,0.00019726,2]
[372280469,1752573050218,-460.0,0.00019726,2]
[372280470,1752573050228,-677.19,0.00019726,2]
[372280471,1752573050237,-460.0,0.00019726,2]
[372280472,1752573050247,-1235.82,0.00019726,2]
[372280473,1752573050258,-460.0,0.00019726,2]
[372280474,1752573050267,-471.80018725,0.00019726,2]
[372280475,1752573050278,-460.0,0.00019726,2]
[372280476,1752573050288,-4430.53,0.00019726,2]
[372280477,1752573050298,-2432.42,0.00019726,2]
[372280478,1752573050307,-460.0,0.00019726,2]
[372280479,1752573050317,-827.1,0.00019726,2]
[372280480,1752573050327,-460.0,0.00019726,2]
[372280481,1752573050336,-460.0,0.00019726,2]
[372280482,1752573050345,-5625.07,0.00019726,2]
[372280483,1752573050355,-460.0,0.00019726,2]
[372280484,1752573050364,-926.97,0.00019726,2]
[372280485,1752573050374,-460.0,0.00019726,2]
[372280486,1752573050383,-460.0,0.00019726,2]
[372280487,1752573050393,-460.0,0.00019726,2]
[372280488,1752573050403,-460.0,0.00019726,2]
[372280489,1752573050412,-460.0,0.00019726,2]
[372280490,1752573050422,-460.0,0.00019726,2]
[372280491,1752573050432,-460.0,0.00019726,2]
[372280492,1752573050441,-6188.2,0.00019726,2]
[372280493,1752573050451,-460.0,0.00019726,2]
[372280494,1752573050460,-460.0,0.00019726,2]
[372280495,1752573050470,-460.0,0.00019726,2]
[372280496,1752573050480,-460.0,0.00019726,2]
[372280497,1752573050490,-648.63,0.00019726,2]
[372280498,1752573050500,-460.0,0.00019726,2]
[372280499,1752573050512,-460.0,0.00019726,2]
[372280500,1752573050522,-460.0,0.00019726,2]
[372280501,1752573050532,-460.0,0.00019726,2]
[372280502,1752573050541,-460.0,0.00019726,2]
[372280503,1752573050551,-698.92,0.00019726,2]
[372280504,1752573050560,-460.0,0.00019726,2]
[372280505,1752573050570,-460.0,0.00019726,2]
[372280506,1752573050580,-460.0,0.00019726,2]
[372280507,1752573050590,-460.0,0.00019726,2]
[372280508,1752573050599,-460.0,0.00019726,2]
[372280509,1752573050610,-326.42748335,0.00019726,2]
[372280510,1752573050620,-460.0,0.00019726,2]
[372280511,1752573050629,-460.0,0.00019726,2]
[372280512,1752573050642,-460.0,0.00019726,2]
[372280513,1752573050651,-460.0,0.00019726,2]
[372280514,1752573050661,-460.0,0.00019726,2]
[372280515,1752573050670,-460.0,0.00019726,2]
[372280516,1752573050681,-1650.28,0.00019726,2]
[372280517,1752573050690,-2087.21,0.00019726,2]
[372280518,1752573050700,-5851.82,0.00019726,2]
[372280519,1752573050710,-460.0,0.00019726,2]
[372280520,1752573050720,-460.0,0.00019726,2]
[372280521,1752573050730,-745.92,0.00019726,2]
[372280522,1752573050740,-3475.71,0.00019726,2]
[372280523,1752573050750,-460.0,0.00019726,2]
[372280524,1752573050760,-460.0,0.00019726,2]
[372280525,1752573050769,-460.0,0.00019726,2]
[372280526,1752573050779,-635.35,0.00019726,2]
[372280527,1752573050789,-1068.81,0.00019726,2]
[372280528,1752573050799,-460.0,0.00019726,2]
[372280529,1752573050808,-479.38,0.00019726,2]
[372280530,1752573050818,-489.91246802,0.00019726,2]
[372280531,1752573050828,-460.0,0.00019726,2]
[372280532,1752573050837,-460.0,0.00019726,2]
[372280533,1752573050846,-460.0,0.00019726,2]
[372280534,1752573050855,-601.48,0.00019726,2]
[372280535,1752573050865,-460.0,0.00019726,2]
[372280536,1752573050874,-2175.23,0.00019726,2]
[372280537,1752573050883,-514.62,0.00019726,2]
[372280538,1752573050893,-570.97,0.00019726,2]
[372280539,1752573050902,-1333.2,0.00019726,2]
[372280540,1752573050912,-460.0,0.00019726,2]
[372280541,1752573050921,-914.1,0.00019726,2]
[372280542,1752573050931,-460.0,0.00019726,2]
[372280543,1752573050940,-1305.81,0.00019726,2]
[372280544,1752573050950,-2433.37,0.00019726,2]
[372280545,1752573050960,-460.0,0.00019726,2]
[372280546,1752573050969,-692.9,0.00019726,2]
[372280547,1752573050979,-460.0,0.00019726,2]
[372280548,1752573050989,-640.61,0.00019726,2]
[372280549,1752573050998,-460.0,0.00019726,2]
[372280550,1752573051008,-460.0,0.00019726,2]
[372280551,1752573051018,-460.0,0.00019726,2]
[372280552,1752573051028,-711.16,0.00019726,2]
[372280553,1752573051037,-460.0,0.00019726,2]
[372280554,1752573051047,-460.0,0.00019726,2]
[372280555,1752573051057,-460.0,0.00019726,2]
[372280556,1752573051067,-465.23061377,0.00019726,2]
[372280557,1752573051076,-460.0,0.00019726,2]
[372280558,1752573051086,-460.0,0.00019726,2]
[372280559,1752573051096,-460.0,0.00019726,2]
[372280560,1752573051106,-830.36,0.00019726,2]
[372280561,1752573051115,-460.0,0.00019726,2]
[372280562,1752573051125,-460.0,0.00019726,2]
[372280563,1752573051135,-460.0,0.00019726,2]
[372280564,1752573051144,-460.0,0.00019726,2]
[372280565,1752573051154,-460.0,0.00019726,2]
[372280566,1752573051165,-1998.15,0.00019726,2]
[372280567,1752573051175,-460.0,0.00019726,2]
[372280568,1752573051184,-7653.71,0.00019726,2]
[372280569,1752573051194,-460.0,0.00019726,2]
[372280570,1752573051204,-1596.83,0.00019726,2]
[372280571,1752573051214,-460.0,0.00019726,2]
[372280572,1752573051223,-460.0,0.00019726,2]
[372280573,1752573051233,-460.0,0.00019726,2]
[372280574,1752573051242,-500.0,0.00019726,2]
[372280575,1752573051252,-500.0,0.00019738,2]
[372280576,1752573051262,-500.0,0.00019738,2]
[372280577,1752573051272,-500.0,0.00019821,2]
[372280578,1752573051282,-8775.8004887,0.00019866,2]
[372280579,1752573051292,-1405.95050548,0.000199,2]
[372280580,1752573051302,-424.32,0.00019938,3]
[372280581,1752573051312,-1068.3570638,0.00019966,2]
[372280582,1752573051322,-4269.15482693,0.00019966,2]
[372280583,1752573051333,-460.0,0.0002,2]
[372280584,1752573051343,-460.0,0.0002,2]
[372280585,1752573051352,-460.0,0.0002,2]
[372280586,1752573051362,-460.0,0.0002,2]
[372280587,1752573051371,-460.0,0.0002,2]
[372280588,1752573051381,-460.0,0.0002,2]
[372280589,1752573051391,-460.0,0.0002,2]
[372280590,1752573051401,-460.0,0.0002,2]
[372280591,1752573051410,-460.0,0.0002,2]
[372280592,1752573051420,-460.0,0.0002,2]
[372280593,1752573051430,-460.0,0.0002,2]
[372280594,1752573051440,-500.0,0.0002,2]
[372280595,1752573051450,-460.0,0.0002,2]
[372280596,1752573051460,-460.0,0.0002,2]
[372280597,1752573051470,-460.0,0.0002,2]
[372280598,1752573051481,-460.0,0.0002,2]
[372280599,1752573051490,-460.0,0.0002,2]
[372280600,1752573051500,-460.0,0.0002,2]
[372280601,1752573051511,-494.98226552,0.0002,2]
[372280602,1752573051521,-460.0,0.0002,2]
[372280603,1752573051530,-460.0,0.0002,2]
[372280604,1752573051545,-460.0,0.0002,2]
[372280605,1752573051560,-412.51747007,0.0002,2]
[372280606,1752573051569,-460.0,0.0002,2]
[372280607,1752573051579,-464.64801131,0.0002,2]
[372280608,1752573051588,-460.0,0.0002,2]
[372280609,1752573051597,-460.0,0.0002,2]
[372280610,1752573051607,-460.0,0.0002,2]
[372280611,1752573051616,-460.0,0.0002,2]
[372280612,1752573051626,-460.0,0.0002,2]
[372280613,1752573051636,-460.0,0.0002,2]
[372280614,1752573051649,-460.0,0.0002,2]
[372280615,1752573051659,-460.0,0.0002,2]
[372280616,1752573051669,-460.0,0.0002,2]
[372280617,1752573051679,-460.0,0.0002,2]
[372280618,1752573051690,-460.0,0.0002,2]
[372280619,1752573051700,-460.0,0.0002,2]
[372280620,1752573051709,-460.0,0.0002,2]
[372280621,1752573051719,-460.0,0.0002,2]
[372280622,1752573051729,-460.0,0.0002,2]
[372280623,1752573051739,-601.75,0.0002,2]
[372280624,1752573051749,-460.0,0.0002,2]
[372280625,1752573051758,-362.18410458,0.0002,2]
[372280626,1752573051768,-460.0,0.0002,2]
[372280627,1752573051778,-744.58,0.0002,2]
[372280628,1752573051790,-527.71,0.0002,2]
[372280629,1752573051803,-460.0,0.0002,2]
[372280630,1752573051812,-460.0,0.0002,2]
[372280631,1752573051821,-460.0,0.0002,2]
[372280632,1752573051831,-460.0,0.0002,2]
[372280633,1752573051840,-460.0,0.0002,2]
[372280634,1752573051849,-573.91,0.0002,2]
[372280635,1752573051859,-460.0,0.0002,2]
[372280636,1752573051868,-460.0,0.0002,2]
[372280637,1752573051878,-460.0,0.0002,2]
[372280638,1752573051887,-460.0,0.0002,2]
[372280639,1752573051897,-460.0,0.0002,2]
[372280640,1752573051906,-460.0,0.0002,2]
[372280641,1752573051916,-460.0,0.0002,2]
[372280642,1752573051926,-848.99,0.0002,2]
[372280643,1752573051935,-460.0,0.0002,2]
[372280644,1752573051945,-151.33233934,0.0002,2]
[372280645,1752573051956,-460.0,0.0002,2]
[372280646,1752573051965,-460.0,0.0002,2]
[372280647,1752573051976,-599.45,0.0002,2]
[372280648,1752573051987,-460.0,0.0002,2]
[372280649,1752573051997,-460.0,0.0002,2]
[372280650,1752573052007,-460.0,0.0002,2]
[372280651,1752573052017,-460.0,0.0002,2]
[372280652,1752573052027,-460.0,0.0002,2]
[372280653,1752573052036,-460.0,0.0002,2]
[372280654,1752573052046,-460.0,0.0002,2]
[372280655,1752573052057,-460.0,0.0002,2]
[372280656,1752573052068,-460.0,0.0002,2]
[372280657,1752573052078,-956.77,0.0002,2]
[372280658,1752573052089,-460.0,0.0002,2]
[372280659,1752573052099,-964.5,0.0002,2]
[372280660,1752573052108,-460.0,0.0002,2]
[372280661,1752573052119,-460.0,0.0002,2]
[372280662,1752573052128,-405.24582769,0.0002,2]
[372280663,1752573052138,-460.0,0.0002,2]
[372280664,1752573052147,-460.0,0.0002,2]
[372280665,1752573052157,-460.0,0.0002,2]
[372280666,1752573052166,-460.0,0.0002,2]
[372280667,1752573052176,-886.03,0.0002,2]
[372280668,1752573052186,-460.0,0.0002,2]
[372280669,1752573052196,-460.0,0.0002,2]
[372280670,1752573052205,-460.0,0.0002,2]
[372280671,1752573052329,-460.0,0.0002,2]
[372280672,1752573052341,-460.0,0.0002,2]
[372280673,1752573052350,-460.0,0.0002,2]
[372280674,1752573052360,-460.0,0.0002,2]
[372280675,1752573052371,-460.0,0.0002,2]
[372280676,1752573052381,-460.0,0.0002,2]
[372280677,1752573052391,-462.63517023,0.0002,2]
[372280678,1752573052402,-460.0,0.0002,2]
[372280679,1752573052413,-460.0,0.0002,2]
[372280680,1752573052424,-475.11,0.0002,2]
[372280681,1752573052435,-521.09,0.0002,2]
[372280682,1752573052446,-460.0,0.0002,2]
[372280683,1752573052456,-460.0,0.0002,2]
[372280684,1752573052466,-460.0,0.0002,2]
[372280685,1752573052476,-460.0,0.0002,2]
[372280686,1752573052485,-460.0,0.0002,2]
[372280687,1752573052495,-460.0,0.0002,2]
[372280688,1752573052504,-460.0,0.0002,2]
[372280689,1752573052515,-460.0,0.0002,2]
[372280690,1752573052526,-460.0,0.0002,2]
[372280691,1752573052536,-460.0,0.0002,2]
[372280692,1752573052546,-403.17381868,0.0002,2]
[372280693,1752573052723,-56.82618132,0.0002,2]
[372280694,1752573052733,-460.0,0.0002,2]
[372280695,1752573052743,-460.0,0.0002,2]
[372280696,1752573052753,-460.0,0.0002,2]
[372280697,1752573052763,-460.0,0.0002,2]
[372280698,1752573052772,-857.74,0.0002,2]
[372280699,1752573052781,-529.98,0.0002,2]
[372280700,1752573052790,-460.0,0.0002,2]
[372280701,1752573052800,-1898.17,0.0002,2]
[372280702,1752573052810,-460.0,0.0002,2]
[372280703,1752573052819,-460.0,0.0002,2]
[372280704,1752573052829,-460.0,0.0002,2]
[372280705,1752573052838,-460.0,0.0002,2]
[372280706,1752573052848,-460.0,0.0002,2]
[372280707,1752573052857,-778.98,0.0002,2]
[372280708,1752573052867,-460.0,0.0002,2]
[372280709,1752573052877,-460.0,0.0002,2]
[372280710,1752573052886,-460.0,0.0002,2]
[372280711,1752573052896,-460.0,0.0002,2]
[372280712,1752573052906,-564.23,0.0002,2]
[372280713,1752573052917,-460.0,0.0002,2]
[372280714,1752573052927,-677.19,0.0002,2]
[372280715,1752573052936,-460.0,0.0002,2]
[372280716,1752573052946,-1235.82,0.0002,2]
[372280717,1752573052956,-460.0,0.0002,2]
[372280718,1752573052965,-460.0,0.0002,2]
[372280719,1752573052975,-4430.53,0.0002,2]
[372280720,1752573052985,-2432.42,0.0002,2]
[372280721,1752573052995,-460.0,0.0002,2]
[372280722,1752573053004,-827.1,0.0002,2]
[372280723,1752573053016,-460.0,0.0002,2]
[372280724,1752573053026,-460.0,0.0002,2]
[372280725,1752573053037,-5625.07,0.0002,2]
[372280726,1752573053047,-217.28544719,0.0002,2]
[372280727,1752573053057,-926.97,0.0002,2]
[372280728,1752573053067,-460.0,0.0002,2]
[372280729,1752573053077,-460.0,0.0002,2]
[372280730,1752573053086,-460.0,0.0002,2]
[372280731,1752573053095,-460.0,0.0002,2]
[372280732,1752573053109,-460.0,0.0002,2]
[372280733,1752573053119,-6188.2,0.0002,2]
[372280734,1752573053128,-460.0,0.0002,2]
[372280735,1752573053138,-460.0,0.0002,2]
[372280736,1752573053148,-460.0,0.0002,2]
[372280737,1752573053157,-460.0,0.0002,2]
[372280738,1752573053167,-648.63,0.0002,2]
[372280739,1752573053177,-460.0,0.0002,2]
[372280740,1752573053187,-460.0,0.0002,2]
[372280741,1752573053196,-460.0,0.0002,2]
[372280742,1752573053206,-698.92,0.0002,2]
[372280743,1752573053216,-460.0,0.0002,2]
[372280744,1752573053226,-460.0,0.0002,2]
[372280745,1752573053236,-460.0,0.0002,2]
[372280746,1752573053246,-460.0,0.0002,2]
[372280747,1752573053255,-478.37757652,0.0002,2]
[372280748,1752573053266,-460.0,0.0002,2]
[372280749,1752573053276,-245.85886653,0.0002,2]
[372280750,1752573053285,-460.0,0.0002,2]
[372280751,1752573053295,-460.0,0.0002,2]
[372280752,1752573053304,-472.26780812,0.0002,2]
[372280753,1752573053314,-1650.28,0.0002,2]
[372280754,1752573053323,-2087.21,0.0002,2]
[372280755,1752573053333,-5851.82,0.0002,2]
[372280756,1752573053342,-460.0,0.0002,2]
[372280757,1752573053352,-460.0,0.0002,2]
[372280758,1752573053361,-745.92,0.0002,2]
[372280759,1752573053371,-3475.71,0.0002,2]
[372280760,1752573053380,-460.0,0.0002,2]
[372280761,1752573053390,-460.0,0.0002,2]
[372280762,1752573053399,-460.0,0.0002,2]
[372280763,1752573053410,-635.35,0.0002,2]
[372280764,1752573053419,-1068.81,0.0002,2]
[372280765,1752573053429,-460.0,0.0002,2]
[372280766,1752573053438,-479.38,0.0002,2]
[372280767,1752573053448,-460.0,0.0002,2]
[372280768,1752573053457,-460.0,0.0002,2]
[372280769,1752573053467,-460.0,0.0002,2]
[372280770,1752573053477,-601.48,0.0002,2]
[372280771,1752573053487,-460.0,0.0002,2]
[372280772,1752573053497,-2175.23,0.0002,2]
[372280773,1752573053506,-514.62,0.0002,2]
[372280774,1752573053516,-1333.2,0.0002,2]
[372280775,1752573053525,-570.97,0.0002,2]
[372280776,1752573053534,-460.0,0.0002,2]
[372280777,1752573053544,-914.1,0.0002,2]
[372280778,1752573053554,-460.0,0.0002,2]
[372280779,1752573053563,-1305.81,0.0002,2]
[372280780,1752573053572,-2433.37,0.0002,2]
[372280781,1752573053582,-460.0,0.0002,2]
[372280782,1752573053591,-692.9,0.0002,2]
[372280783,1752573053601,-460.0,0.0002,2]
[372280784,1752573053610,-640.61,0.0002,2]
[372280785,1752573053619,-559.66935542,0.0002,2]
[372280786,1752573053629,-460.0,0.0002,2]
[372280787,1752573053642,-460.0,0.0002,2]
[372280788,1752573053651,-711.16,0.0002,2]
[372280789,1752573053661,-460.0,0.0002,2]
[372280790,1752573053670,-460.0,0.0002,2]
[372280791,1752573053680,-460.0,0.0002,2]
[372280792,1752573053690,-460.0,0.0002,2]
[372280793,1752573053699,-4000.0,0.0002,4]
[372280794,1752573053710,-460.0,0.0002,2]
[372280795,1752573053722,-830.36,0.0002,2]
[372280796,1752573053731,-460.0,0.0002,2]
[372280797,1752573053741,-460.0,0.0002,2]
[372280798,1752573053752,-460.0,0.0002,2]
[372280799,1752573053763,-460.0,0.0002,2]
[372280800,1752573053773,-1998.15,0.0002,2]
[372280801,1752573053783,-460.0,0.0002,2]
[372280802,1752573053794,-7653.71,0.0002,2]
[372280803,1752573053810,-460.0,0.0002,2]
[372280804,1752573053826,-1596.83,0.0002,2]
[372280805,1752573053836,-460.0,0.0002,2]
[372280806,1752573053847,-460.0,0.0002,2]
[372280807,1752573053858,-160.0,0.00020007,2]
[372280808,1752573053869,-1009.81140202,0.00020021,2]
[372280809,1752573053879,-505.23073662,0.00020021,2]
[372280810,1752573053888,-1000.0,0.00020021,2]
[372280811,1752573053897,-209.02065604,0.00020021,2]
[372280812,1752573053907,-1000.0,0.00020021,2]
[372280813,1752573053917,-505.39614656,0.00020021,2]
[372280814,1752573053926,-260.58499633,0.00020021,2]
[372280815,1752573053936,-1005.63930367,0.00020021,2]
[372280816,1752573053946,-1000.0,0.00020021,2]
[372280817,1752573053955,-1000.0,0.00020021,2]
[372280818,1752573053964,-1000.0,0.00020021,2]
[372280819,1752573053974,-500.0,0.00020038,2]
[372280820,1752573053983,-151.0,0.000201,4]
[372280821,1752573053994,-8775.8004887,0.00020107,2]
[372280822,1752573054003,-504.65986824,0.00020216,2]
[372280823,1752573054014,-1008.90043189,0.00020216,2]
[372280824,1752573054024,-2000.0,0.00020216,2]
[372280825,1752573054034,-420.0,0.00020252,2]
[372280826,1752573054043,-1500.0,0.00020268,2]
[372280827,1752573054053,-1519.35936246,0.00020268,2]
[372280828,1752573054063,-1500.0,0.00020268,2]
[372280829,1752573054073,-500.0,0.00020272,2]
[372280830,1752573054083,-448.26567889,0.00020272,2]
[372280831,1752573054092,-412.05559276,0.00020273,2]
[372280832,1752573054102,-460.0,0.00020273,2]
[372280833,1752573054112,-460.0,0.00020273,2]
[372280834,1752573054121,-460.0,0.00020273,2]
[372280835,1752573054131,-460.0,0.00020273,2]
[372280836,1752573054140,-460.0,0.00020273,2]
[372280837,1752573054149,-460.0,0.00020273,2]
[372280838,1752573054159,-460.0,0.00020273,2]
[372280839,1752573054169,-460.0,0.00020273,2]
[372280840,1752573054178,-460.0,0.00020273,2]
[372280841,1752573054188,-460.0,0.00020273,2]
[372280842,1752573054198,-460.0,0.00020273,2]
[372280843,1752573054208,-460.0,0.00020273,2]
[372280844,1752573054219,-460.0,0.00020273,2]
[372280845,1752573054228,-460.0,0.00020273,2]
[372280846,1752573054238,-460.0,0.00020273,2]
[372280847,1752573054247,-460.0,0.00020273,2]
[372280848,1752573054257,-460.0,0.00020273,2]
[372280849,1752573054267,-460.0,0.00020273,2]
[372280850,1752573054276,-460.0,0.00020273,2]
[372280851,1752573054286,-473.8056111,0.00020273,2]
[372280852,1752573054295,-460.0,0.00020273,2]
[372280853,1752573054305,-460.0,0.00020273,2]
[372280854,1752573054314,-460.0,0.00020273,2]
[372280855,1752573054324,-460.0,0.00020273,2]
[372280856,1752573054333,-460.0,0.00020273,2]
[372280857,1752573054343,-460.0,0.00020273,2]
[372280858,1752573054353,-460.0,0.00020273,2]
[372280859,1752573054362,-460.0,0.00020273,2]
[372280860,1752573054371,-601.75,0.00020273,2]
[372280861,1752573054380,-460.0,0.00020273,2]
[372280862,1752573054389,-744.58,0.00020273,2]
[372280863,1752573054399,-527.71,0.00020273,2]
[372280864,1752573054408,-460.0,0.00020273,2]
[372280865,1752573054419,-460.0,0.00020273,2]
[372280866,1752573054430,-460.0,0.00020273,2]
[372280867,1752573054440,-460.0,0.00020273,2]
[372280868,1752573054450,-355.78438195,0.00020273,2]
[372280869,1752573054460,-573.91,0.00020273,2]
[372280870,1752573054470,-460.0,0.00020273,2]
[372280871,1752573054479,-460.0,0.00020273,2]
[372280872,1752573054488,-460.0,0.00020273,2]
[372280873,1752573054498,-460.0,0.00020273,2]
[372280874,1752573054622,-460.0,0.00020273,2]
[372280875,1752573054633,-460.0,0.00020273,2]
[372280876,1752573054647,-848.99,0.00020273,2]
[372280877,1752573054657,-460.0,0.00020273,2]
[372280878,1752573054667,-460.0,0.00020273,2]
[372280879,1752573054677,-416.70141312,0.00020273,2]
[372280880,1752573054687,-599.45,0.00020273,2]
[372280881,1752573054697,-426.85962684,0.00020273,2]
[372280882,1752573054706,-460.0,0.00020273,2]
[372280883,1752573054717,-460.0,0.00020273,2]
[372280884,1752573054726,-470.19602813,0.00020273,2]
[372280885,1752573054736,-460.0,0.00020273,2]
[372280886,1752573054746,-289.79576107,0.00020273,2]
[372280887,1752573054755,-460.0,0.00020273,2]
[372280888,1752573054765,-460.0,0.00020273,2]
[372280889,1752573054774,-956.77,0.00020273,2]
[372280890,1752573054784,-460.0,0.00020273,2]
[372280891,1752573054794,-964.5,0.00020273,2]
[372280892,1752573054803,-460.0,0.00020273,2]
[372280893,1752573054813,-460.0,0.00020273,2]
[372280894,1752573054822,-460.0,0.00020273,2]
[372280895,1752573054832,-460.0,0.00020273,2]
[372280896,1752573054841,-460.0,0.00020273,2]
[372280897,1752573054851,-460.0,0.00020273,2]
[372280898,1752573054859,-886.03,0.00020273,2]
[372280899,1752573054869,-179.99235221,0.00020273,2]
[372280900,1752573054878,-460.0,0.00020273,2]
[372280901,1752573054888,-460.0,0.00020273,2]
[372280902,1752573054897,-460.0,0.00020273,2]
[372280903,1752573054906,-460.0,0.00020273,2]
[372280904,1752573054916,-460.0,0.00020273,2]
[372280905,1752573054925,-460.0,0.00020273,2]
[372280906,1752573054935,-461.16747139,0.00020273,2]
[372280907,1752573054945,-475.11,0.00020273,2]
[372280908,1752573054954,-521.09,0.00020273,2]
[372280909,1752573054964,-460.0,0.00020273,2]
[372280910,1752573054973,-460.0,0.00020273,2]
[372280911,1752573054984,-460.0,0.00020273,2]
[372280912,1752573054994,-460.0,0.00020273,2]
[372280913,1752573055005,-606.51054467,0.00020273,2]
[372280914,1752573055015,-539.14168803,0.00020273,2]
[372280915,1752573055026,-460.0,0.00020273,2]
[372280916,1752573055036,-460.0,0.00020273,2]
[372280917,1752573055047,-460.0,0.00020273,2]
[372280918,1752573055056,-460.0,0.00020273,2]
[372280919,1752573055065,-460.0,0.00020273,2]
[372280920,1752573055076,-460.0,0.00020273,2]
[372280921,1752573055086,-460.0,0.00020273,2]
[372280922,1752573055095,-857.74,0.00020273,2]
[372280923,1752573055104,-529.98,0.00020273,2]
[372280924,1752573055114,-460.0,0.00020273,2]
[372280925,1752573055125,-1898.17,0.00020273,2]
[372280926,1752573055135,-460.0,0.00020273,2]
[372280927,1752573055144,-460.0,0.00020273,2]
[372280928,1752573055154,-460.0,0.00020273,2]
[372280929,1752573055163,-460.0,0.00020273,2]